bitfinex-derivatives/quotes_ETHF0:USTF0_20250712
["timestamp","ask_amount","ask_price","bid_price","bid_amount"]
[1752358058190,4.02079968,2936.2,2936.1,0.9116]
[1752358058191,7.22859968,2936.2,2936.1,0.9116]
[1752358060091,3.19416,2936.0,2935.9,2.4725]
[1752358060392,4.05014968,2936.0,2935.9,2.4725]
[1752358060590,4.05014968,2936.0,2935.9,0.9199]
[1752358063795,4.05014968,2936.0,2935.9,2.4725]
[1752358066896,3.19425,2935.6,2935.5,0.6023]
[1752358067091,2.29395,2935.3,2935.2,1.28343]
[1752358067298,4.05033968,2935.3,2935.2,2.4725]
[1752358067686,3.19439,2935.0,2934.9,2.4725]
[1752358067889,4.05037968,2935.0,2934.9,2.4725]
[1752358068598,3.19439,2935.0,2934.9,3.15372]
[1752358068797,2.29399,2935.0,2934.9,3.15372]
[1752358069697,1.6128,2935.0,2934.9,3.15372]
[1752358069897,3.2078,2935.3,2935.2,1.28345]
[1752358070198,3.2078,2935.3,2935.2,3.15365]
[1752358072995,0.6811,2935.4,2935.3,0.68112]
[1752358073304,3.2078,2935.4,2935.3,3.15362]
[1752358073792,1.32039,2935.5,2935.4,2.4725]
[1752358074394,2.29389,2935.5,2935.4,2.4725]
[1752358075096,1.6128,2935.5,2935.4,3.1536]
[1752358075901,2.29388,2935.5,2935.4,3.1536]
[1752358076103,1.6128,2935.5,2935.4,3.1536]
[1752358076402,2.29388,2935.5,2935.4,3.1536]
[1752358079506,3.19458,2935.5,2935.4,2.4725]
[1752358080404,3.19458,2935.5,2935.4,3.1536]
[1752358081105,3.19458,2935.5,2935.4,2.4725]
[1752358081305,3.19458,2935.5,2935.4,3.1536]
[1752358082109,3.19458,2935.5,2935.4,2.4725]
[1752358082503,3.19458,2935.5,2935.4,3.1536]
[1752358082807,3.19458,2935.5,2935.4,2.4725]
[1752358084008,3.19458,2935.5,2935.4,3.1536]
[1752358084406,3.19458,2935.5,2935.4,2.4725]
[1752358088306,3.1388,2935.4,2935.3,1.6347]
[1752358088508,3.1388,2935.4,2935.3,2.5936]
[1752358089208,3.1388,2935.4,2935.3,3.27472]
[1752358089708,3.1388,2935.4,2935.3,2.5936]
[1752358090015,3.1388,2935.4,2935.3,3.27472]
[1752358090314,2.2382,2935.4,2935.3,3.27472]
[1752358091612,2.2382,2935.4,2935.3,2.5936]
[1752358092715,2.2382,2935.4,2935.3,3.27472]
[1752358092912,0.68109,2935.5,2935.4,0.68108]
[1752358093111,4.1309,2935.6,2935.5,1.32078]
[1752358093410,3.2078,2935.6,2935.5,3.27468]
[1752358094413,3.2078,2935.6,2935.5,4.13066968]
[1752358095712,1.31502,2935.8,2935.7,0.68103]
[1752358095916,2.23812,2935.8,2935.7,3.27463]
[1752358097416,0.634,2935.5,2935.4,0.6397]
[1752358097621,3.99476968,2935.5,2935.4,0.9589]
[1752358098913,2.23818,2935.5,2935.4,2.5936]
[1752358099122,2.23818,2935.5,2935.4,3.2747]
[1752358100914,4.1084,2935.7,2935.0,5.76675968]
[1752358100915,0.68107,2935.6,2935.5,1.67606]
[1752358101116,0.68107,2935.6,2935.5,3.27466]
[1752358101316,4.81194,2935.7,2935.6,0.68105]
[1752358101521,0.68104,2935.7,2935.6,3.27465]
[1752358102022,1.31504,2935.7,2935.6,3.27465]
[1752358102718,3.88877,2936.0,2935.8,2.5936]
[1752358102918,5.44587,2936.0,2935.9,2.5936]
[1752358103118,6.45301467,2936.0,2935.9,2.5936]
[1752358103315,6.45301467,2936.0,2935.9,3.27458]
[1752358103616,5.44587,2936.0,2935.9,3.27458]
[1752358103818,3.2078,2936.0,2935.9,3.27458]
[1752358104017,3.88876,2936.0,2935.9,3.27458]
[1752358104618,3.2078,2936.0,2935.9,3.27458]
[1752358105315,0.68094,2936.1,2936.0,1.32066]
[1752358105525,0.68094,2936.1,2936.0,3.27456]
[1752358105720,0.68094,2936.1,2936.0,2.5936]
[1752358106013,2.23804,2936.1,2936.0,3.27456]
[1752358106221,1.31494,2936.1,2936.0,3.27456]
[1752358106616,1.31494,2936.1,2936.0,2.5936]
[1752358107119,2.23804,2936.1,2936.0,2.5936]
[1752358108416,0.68093,2936.2,2936.1,0.68092]
[1752358108622,0.68093,2936.2,2936.1,3.27452]
[1752358108920,0.68093,2936.2,2936.1,2.5936]
[1752358109119,0.68093,2936.2,2936.1,3.27454]
[1752358109918,0.68092,2936.2,2936.1,3.27454]
[1752358110421,3.2078,2936.3,2936.2,3.27452]
[1752358110624,3.88869,2936.3,2936.2,3.27452]
[1752358112124,3.2078,2936.3,2936.2,3.27452]
[1752358112423,3.16451,2937.1,2937.0,2.5936]
[1752358112618,3.16451,2937.1,2937.0,3.27433]
[1752358113223,3.16451,2937.1,2937.0,2.5936]
[1752358113424,1.31475,2936.9,2936.8,2.5936]
[1752358113724,3.1646,2936.7,2936.6,2.5936]
[1752358114722,3.1646,2936.7,2936.6,0.6397]
[1752358114925,3.16469,2936.3,2936.2,5.8014]
[1752358115222,4.02067968,2936.3,2936.2,5.8014]
[1752358116325,4.02067968,2936.3,2936.2,4.8064]
[1752358118727,3.16469,2936.3,2936.2,5.7418]
[1752358123531,0.9752,2936.5,2936.2,5.7418]
[1752358123726,1.33688,2936.4,2936.3,2.51618]
[1752358123933,3.28358,2936.4,2936.3,3.13578]
[1752358124533,2.31208,2936.4,2936.3,3.13578]
[1752358124833,0.656,2936.6,2936.5,3.13575]
[1752358125022,1.33683,2936.6,2936.5,2.4549]
[1752358125221,2.31203,2936.6,2936.5,2.4549]
[1752358125426,3.28353,2936.6,2936.5,2.4549]
[1752358125928,3.28353,2936.6,2936.5,3.13575]
[1752358126132,3.28353,2936.6,2936.5,2.4549]
[1752358127436,3.28353,2936.6,2936.5,3.13575]
[1752358128537,3.28353,2936.6,2936.5,2.4549]
[1752358128839,3.28353,2936.6,2936.5,3.13575]
[1752358129739,3.28353,2936.6,2936.5,2.4549]
[1752358130433,3.28359,2936.3,2936.2,5.6627]
[1752358130638,3.28359,2936.3,2936.2,6.34362]
[1752358133838,3.28359,2936.3,2936.2,5.6627]
[1752358134037,3.28359,2936.3,2936.2,6.34362]
[1752358137945,2.6027,2936.3,2936.2,6.34362]
[1752358138145,3.28359,2936.3,2936.2,6.34362]
[1752358140042,3.28359,2936.3,2936.2,5.6627]
[1752358140650,3.28359,2936.3,2936.2,6.34362]
[1752358140839,3.28359,2936.3,2936.2,5.6627]
[1752358141648,3.28359,2936.3,2936.2,6.34361]
[1752358143049,3.28359,2936.3,2936.2,5.6627]
[1752358143749,3.28359,2936.3,2936.2,6.34361]
[1752358144250,3.28359,2936.3,2936.2,5.6627]
[1752358144744,3.28359,2936.3,2936.2,2.4549]
[1752358145342,3.28366,2936.0,2935.9,5.6627]
[1752358145552,4.13964968,2936.0,2935.9,6.34368]
[1752358145856,4.13964968,2936.0,2935.9,5.6627]
[1752358146047,4.13964968,2936.0,2935.9,3.2078]
[1752358147046,4.13964968,2936.0,2935.7,1.8852]
[1752358147047,2.5787,2935.7,2935.6,5.7713]
[1752358147351,3.25973,2935.7,2935.6,6.45234]
[1752358149247,3.25973,2935.7,2935.6,3.24454]
[1752358150653,2.5787,2935.7,2935.6,3.24454]
[1752358150853,3.25973,2935.7,2935.6,3.24454]
[1752358152153,4.11571968,2935.7,2935.6,2.5635]
[1752358152553,3.25973,2935.7,2935.6,3.24455]
[1752358153251,3.25973,2935.7,2935.6,1.5782]
[1752358153451,3.25973,2935.7,2935.6,0.6155]
[1752358154544,3.25973,2935.7,2935.6,1.5782]
[1752358154750,3.25966,2936.0,2935.9,1.6008]
[1752358154952,3.25966,2936.0,2935.9,2.5635]
[1752358155153,3.25966,2936.0,2935.9,3.24448]
[1752358155347,3.25966,2936.0,2935.9,2.5635]
[1752358155854,3.25966,2936.0,2935.9,3.24448]
[1752358156157,3.25966,2936.0,2935.9,2.5635]
[1752358156352,0.6365,2936.0,2935.9,3.24448]
[1752358156554,0.68095,2936.1,2936.0,2.28176]
[1752358156752,0.68095,2936.1,2936.0,3.24446]
[1752358157558,1.6287,2936.2,2936.1,0.6155]
[1752358157856,3.25963,2936.2,2936.1,2.5635]
[1752358158156,3.25963,2936.2,2936.1,3.24444]
[1752358159055,3.25963,2936.2,2936.1,2.5635]
[1752358159260,3.25963,2936.2,2936.1,3.24444]
[1752358159763,1.5865,2936.2,2936.1,3.24444]
[1752358159957,2.26742,2936.2,2936.1,3.24444]
[1752358160256,1.5865,2936.2,2936.1,3.24444]
[1752358161053,2.26742,2936.2,2936.1,3.24444]
[1752358161452,3.25962,2936.2,2936.1,3.24444]
[1752358162159,3.25962,2936.2,2936.1,2.5635]
[1752358162958,0.6365,2936.2,2936.1,3.24444]
[1752358163158,1.31742,2936.2,2936.1,3.24444]
[1752358163559,2.26742,2936.2,2936.1,3.24444]
[1752358164060,3.25962,2936.2,2936.1,3.24444]
[1752358165461,2.5787,2936.2,2936.1,3.24444]
[1752358166262,3.25962,2936.2,2936.1,3.24444]
[1752358166759,2.5787,2936.2,2936.1,3.24444]
[1752358167262,0.6365,2936.2,2936.1,3.24444]
[1752358167461,3.25958,2936.4,2936.3,2.5635]
[1752358167661,3.25958,2936.4,2936.3,3.24439]
[1752358168364,3.25958,2936.4,2936.3,2.5635]
[1752358168564,3.25958,2936.4,2936.3,3.24439]
[1752358174073,3.25957,2936.4,2936.3,3.24439]
[1752358174271,2.5787,2936.4,2936.3,3.24439]
[1752358174472,3.25957,2936.4,2936.3,3.24439]
[1752358175871,3.25957,2936.4,2936.3,2.5635]
[1752358177271,3.25957,2936.4,2936.3,3.24439]
[1752358181077,3.25957,2936.4,2936.3,2.5635]
[1752358184971,4.11555968,2936.4,2936.3,2.5635]
[1752358185780,4.11555968,2936.4,2936.3,3.24439]
[1752358186180,3.20574,2936.1,2936.0,4.8146]
[1752358186377,4.06172968,2936.1,2936.0,5.49556]
[1752358186777,4.06172968,2936.1,2936.0,6.42146]
[1752358190388,2.5248,2936.1,2936.0,6.42146]
[1752358190585,3.20574,2936.1,2936.0,6.42146]
[1752358196989,3.20574,2936.1,2936.0,3.21366]
[1752358197492,2.5248,2936.1,2936.0,3.21366]
[1752358200892,1.5545,2936.3,2936.2,3.21362]
[1752358201093,3.53171273,2936.3,2936.2,3.21362]
[1752358201795,4.21260273,2936.3,2936.2,3.21362]
[1752358208003,5.06859241,2936.3,2936.2,2.5327]
[1752358224312,4.14469241,2936.3,2936.2,1.6068]
[1752358225808,4.14469241,2936.3,2936.2,2.28772]
[1752358226009,3.28870273,2936.3,2936.2,2.28772]
[1752358226312,4.24350273,2936.3,2936.2,3.27082]
[1752358226906,3.56261273,2936.3,2935.9,1.8849]
[1752358227105,3.23775,2936.2,2936.1,3.20872]
[1752358231612,3.23775,2936.2,2936.1,2.5278]
[1752358236914,3.88089646,2936.2,2936.1,2.5278]
[1752358237614,3.88089646,2936.2,2936.1,3.20874]
[1752358237814,3.88089646,2936.2,2936.1,2.5278]
[1752358244423,3.88089646,2936.2,2936.1,3.20874]
[1752358246926,3.88089646,2936.2,2936.1,2.5278]
[1752358247825,3.88089646,2936.2,2936.1,3.20874]
[1752358253133,3.88089646,2936.2,2936.1,2.5278]
[1752358254225,3.88089646,2936.2,2936.1,3.20874]
[1752358254527,3.81709646,2936.5,2936.4,2.5254]
[1752358254732,4.82584993,2936.5,2936.4,2.5254]
[1752358275157,2.23644,2936.1,2936.0,3.8432]
[1752358275456,3.86198646,2936.1,2936.0,3.8432]
[1752358275658,3.86198646,2936.1,2936.0,5.7218]
[1752358276352,3.86198646,2936.1,2935.5,3.2078]
[1752358276353,1.9125,2936.0,2935.5,3.2078]
[1752358276559,0.6811,2935.5,2935.4,0.6354]
[1752358276759,0.6811,2935.5,2935.4,2.514]
[1752358276955,0.6811,2935.5,2935.4,3.19508]
[1752358277259,3.219,2935.5,2935.4,2.514]
[1752358281759,2.28892,2935.3,2935.2,5.7218]
[1752358281959,3.21902,2935.3,2935.2,5.7218]
[1752358282155,3.21902,2935.3,2935.2,2.514]
[1752358283862,3.21907,2935.1,2935.0,2.514]
[1752358284069,3.86221646,2935.1,2935.0,2.514]
[1752358284658,3.21912,2934.9,2934.8,0.6354]
[1752358284866,3.21912,2934.9,2934.5,3.2078]
[1752358284867,3.21916,2934.7,2934.6,2.514]
[1752358285067,3.21916,2934.7,2934.6,1.5443]
[1752358285369,3.21916,2934.7,2934.4,1.6051]
[1752358285370,0.68131,2934.5,2934.4,1.6051]
[1752358285561,1.30678,2934.2,2934.1,4.8129]
[1752358285766,1.30683,2934.0,2933.9,1.6051]
[1752358285963,4.0779189,2934.0,2933.9,2.514]
[1752358286164,3.21933,2934.0,2933.9,2.514]
[1752358286465,4.0663889,2934.4,2933.9,2.514]
[1752358286662,1.6638,2934.1,2934.0,1.8786]
[1752358286967,1.6078,2934.1,2934.0,3.19543]
[1752358287169,0.6254,2934.1,2934.0,3.19543]
[1752358287369,3.21927,2934.3,2934.2,0.6354]
[1752358287573,3.21927,2934.3,2934.2,2.514]
[1752358288576,3.2078,2934.4,2934.3,3.19536]
[1752358288774,0.68132,2934.5,2934.4,2.28643]
[1752358289072,0.68132,2934.5,2934.4,3.19533]
[1752358289267,1.30672,2934.5,2934.4,3.19533]
[1752358289472,2.28912,2934.5,2934.4,3.19533]
[1752358289873,3.21922,2934.5,2934.4,2.514]
[1752358292580,3.21916,2934.7,2934.6,1.6051]
[1752358292779,3.21916,2934.7,2934.6,2.514]
[1752358295573,3.21916,2934.7,2934.6,1.5443]
[1752358295780,3.21926,2934.3,2934.2,5.7218]
[1752358296178,4.0778489,2934.3,2934.2,5.7218]
[1752358297283,3.21926,2934.3,2934.2,5.7218]
[1752358299086,3.21926,2934.3,2934.2,6.40318]
[1752358299390,0.68136,2934.3,2934.2,6.40318]
[1752358301590,0.68136,2934.3,2934.2,3.19538]
[1752358301996,3.23901898,2934.3,2934.2,2.514]
[1752358307094,3.23901898,2934.3,2934.2,3.19538]
[1752358307598,3.23901898,2934.3,2934.2,2.514]
[1752358308199,3.23901898,2934.3,2934.2,3.19538]
[1752358309299,3.23901898,2934.3,2934.2,2.514]
[1752358310501,3.242,2934.1,2934.0,3.8693]
[1752358310700,4.1005889,2934.1,2934.0,3.8693]
[1752358311101,1.31025,2933.9,2933.8,2.6383]
[1752358311399,4.1006389,2933.9,2933.8,0.6615]
[1752358312894,4.1006389,2933.9,2933.7,3.2078]
[1752358312895,1.31027,2933.8,2933.7,3.2078]
[1752358313100,3.24214,2933.5,2933.4,2.6383]
[1752358315101,3.24214,2933.5,2933.4,3.31986]
[1752358315296,3.24214,2933.5,2933.4,2.6383]
[1752358316904,3.24214,2933.5,2933.4,3.31986]
[1752358317801,2.5622789,2933.9,2933.6,0.9899]
[1752358317802,1.6235,2933.8,2933.6,0.9899]
[1752358317997,2.30499,2933.8,2933.7,2.32987]
[1752358318196,2.30499,2933.8,2933.7,3.31977]
[1752358319404,1.6235,2934.0,2933.9,3.31975]
[1752358319599,0.6288,2934.2,2934.1,3.31969]
[1752358319901,1.63672859,2934.2,2934.1,3.31969]
[1752358320502,1.00792859,2934.2,2934.1,3.31969]
[1752358321203,1.68930859,2934.2,2934.1,3.31969]
[1752358321802,1.00792859,2934.2,2934.1,3.31969]
[1752358322199,0.68136,2934.3,2934.2,1.34288]
[1752358322406,0.68135,2934.4,2934.3,2.33273]
[1752358322604,1.69031537,2934.4,2934.3,3.31963]
[1752358323401,1.00896537,2934.4,2934.3,3.31963]
[1752358325504,1.89850416,2934.9,2934.8,2.6383]
[1752358325703,1.89850416,2934.9,2934.8,5.8461]
[1752358326312,2.28762,2934.9,2934.8,5.8461]
[1752358326617,2.28762,2934.9,2934.8,6.52734]
[1752358326813,1.31002,2934.9,2934.8,6.52734]
[1752358327918,0.6288,2934.9,2934.8,6.52734]
[1752358328119,2.25811,2935.0,2934.9,0.68122]
[1752358328319,3.23571,2935.0,2934.9,3.14952]
[1752358328518,1.32101,2935.0,2934.9,3.14952]
[1752358328714,1.32097,2935.2,2935.1,1.31495]
[1752358328919,2.29857,2935.2,2935.1,2.4683]
[1752358329121,3.25917,2935.2,2935.1,2.4683]
[1752358329417,3.25917,2935.2,2935.1,3.14947]
[1752358330013,3.25917,2935.2,2935.1,2.4683]
[1752358330219,3.25917,2935.2,2935.1,3.14947]
[1752358331719,3.25917,2935.2,2935.1,2.4683]
[1752358336222,3.25917,2935.2,2935.1,3.14947]
[1752358343524,3.25917,2935.2,2935.1,2.4683]
[1752358343723,3.25917,2935.2,2935.1,3.14947]
[1752358347125,3.25915,2935.2,2935.1,3.14947]
[1752358347325,0.6398,2935.3,2935.2,0.68112]
[1752358347526,2.29854,2935.3,2935.2,3.14942]
[1752358347728,1.6004,2935.6,2935.5,0.6338]
[1752358347923,2.28148,2935.6,2935.5,3.14938]
[1752358348430,3.25908,2935.6,2935.5,3.14938]
[1752358348627,1.32076,2936.0,2935.9,2.4683]
[1752358349229,3.25896,2936.0,2935.9,2.4683]
[1752358364935,0.6398,2936.0,2935.9,3.14928]
[1752358365134,2.5464,2936.2,2936.1,3.19864]
[1752358365336,3.22734,2936.2,2936.1,2.5177]
[1752358366542,3.22734,2936.2,2936.1,3.19864]
[1752358368241,3.22734,2936.2,2936.1,2.5177]
[1752358370340,3.22734,2936.2,2936.1,3.19864]
[1752358372442,2.5464,2936.2,2936.1,3.19864]
[1752358372641,1.9178,2936.6,2936.4,2.5177]
[1752358372844,2.59864,2936.6,2936.5,2.5177]
[1752358373033,3.22724,2936.6,2936.5,2.5177]
[1752358373644,3.22724,2936.6,2936.5,3.19855]
[1752358377548,2.5464,2936.6,2936.5,3.19855]
[1752358377749,6.6127889,2937.0,2936.9,1.554]
[1752358377949,7.43647105,2937.0,2936.9,2.5177]
[1752358378149,6.43493,2937.0,2936.9,2.5177]
[1752358380854,3.22722,2936.6,2936.5,5.7255]
[1752358382154,0.68089,2936.3,2936.2,3.2078]
[1752358382350,4.0858789,2936.3,2936.2,5.7255]
[1752358382649,4.0858789,2936.3,2936.2,3.19861]
[1752358382853,3.22729,2936.3,2936.2,2.5177]
[1752358383448,1.30956,2936.0,2935.9,4.52697]
[1752358383651,3.22736,2936.0,2935.9,6.40647]
[1752358384056,3.22736,2936.0,2935.9,5.7255]
[1752358384356,2.5464,2936.0,2935.9,6.40648]
[1752358385050,3.22736,2936.0,2935.9,5.7255]
[1752358385256,3.22736,2936.0,2935.9,2.5177]
[1752358386255,3.22736,2936.0,2935.9,0.6382]
[1752358386457,2.23181,2935.8,2935.7,2.5997]
[1752358386656,3.22671,2935.8,2935.7,2.5997]
[1752358387657,3.22673,2935.7,2935.6,3.8368]
[1752358387853,3.22673,2935.7,2935.6,5.8075]
[1752358388150,4.0853189,2935.7,2935.6,5.8075]
[1752358388356,0.616,2935.6,2935.5,0.629]
[1752358388550,3.22675,2935.6,2935.5,2.5997]
[1752358389148,0.68115,2935.2,2935.1,1.31015]
[1752358389350,0.68115,2935.2,2935.1,2.30685]
[1752358389351,3.22685,2935.2,2935.1,2.30685]
[1752358389557,3.22685,2935.2,2935.1,1.6257]
[1752358389854,3.22685,2935.2,2935.1,2.5997]
[1752358390148,2.5457,2935.2,2935.0,3.2078]
[1752358390353,3.22687,2935.1,2935.0,3.8368]
[1752358390745,3.22687,2935.1,2935.0,4.8108]
[1752358390945,3.22687,2935.1,2935.0,5.8075]
[1752358391354,3.22687,2935.1,2935.0,6.48869]
[1752358392158,3.22687,2935.1,2935.0,5.8075]
[1752358392659,2.5457,2935.1,2935.0,6.48869]
[1752358398763,2.5457,2935.5,2935.4,2.5997]
[1752358399061,3.2268,2935.5,2935.4,2.5997]
[1752358399857,3.2268,2935.5,2935.4,3.2808]
[1752358400656,3.2268,2935.5,2935.4,2.5997]
[1752358400961,3.2268,2935.5,2935.4,3.2808]
[1752358402364,2.5457,2935.5,2935.4,3.2808]
[1752358403359,3.22678,2935.5,2935.4,3.2808]
[1752358403864,3.22678,2935.5,2935.4,2.5997]
[1752358404570,3.22678,2935.5,2935.4,3.2808]
[1752358405168,3.22678,2935.5,2935.4,6.4886]
[1752358405465,3.22678,2935.5,2935.4,3.2808]
[1752358405957,2.5457,2935.5,2935.4,3.2808]
[1752358406362,3.22678,2935.5,2935.4,3.2808]
[1752358409869,0.8585889,2935.9,2935.4,3.2808]
[1752358410075,2.5457,2935.8,2935.7,3.28071]
[1752358410970,3.22672,2935.8,2935.7,3.28071]
[1752358411466,3.22672,2935.8,2935.4,3.8889]
[1752358411467,2.5457,2935.6,2935.5,1.9707]
[1752358411671,2.29202,2935.4,2935.3,3.2808]
[1752358411870,3.22682,2935.4,2935.3,3.2808]
[1752358413079,3.22682,2935.4,2935.3,2.5997]
[1752358413269,3.22682,2935.4,2935.3,3.28082]
[1752358414681,3.22682,2935.4,2935.3,2.5997]
[1752358415777,3.22682,2935.4,2935.3,3.28082]
[1752358418781,2.5457,2935.4,2935.3,3.28082]
[1752358419081,3.2268,2935.4,2935.3,3.28082]
[1752358419281,3.2268,2935.4,2935.3,2.5997]
[1752358419688,3.2268,2935.4,2935.3,3.28082]
[1752358419888,3.2268,2935.4,2935.3,2.5997]
[1752358420489,3.2268,2935.4,2935.3,1.6257]
[1752358420990,4.0853889,2935.4,2935.3,1.6257]
[1752358421990,4.0853889,2935.4,2935.3,2.5633]
[1752358424192,3.2268,2935.4,2935.3,3.24442]
[1752358424588,3.2268,2935.4,2935.3,2.5633]
[1752358433700,3.2268,2935.4,2935.3,3.24442]
[1752358435000,2.31269,2935.0,2934.9,2.5855]
[1752358435204,1.65859,2935.0,2934.9,2.5855]
[1752358435503,3.25809,2935.0,2934.9,2.5855]
[1752358435904,2.5769,2935.0,2934.9,3.26672]
[1752358436104,3.25809,2935.0,2934.9,3.26672]
[1752358436303,3.25809,2935.0,2934.9,2.5855]
[1752358452311,0.68124,2934.8,2934.7,1.62945]
[1752358452517,3.25544,2934.8,2934.7,2.5453]
[1752358468721,3.25546,2934.7,2934.6,3.2078]
[1752358469021,4.1140489,2934.7,2934.6,3.2078]
[1752358471324,0.68126,2934.7,2934.6,6.43439]
[1752358472620,1.9344,2934.9,2934.7,0.68124]
[1752358472826,0.68124,2934.8,2934.7,3.22655]
[1752358473225,1.61684,2934.8,2934.7,3.22655]
[1752358473826,1.61684,2934.8,2934.7,2.5453]
[1752358474025,3.25544,2934.8,2934.7,2.5453]
[1752358483836,3.28076,2934.7,2934.6,3.2078]
[1752358484034,4.1393489,2934.7,2934.6,3.2078]
[1752358485134,4.1393489,2934.7,2934.6,5.7473]
[1752358488135,3.28076,2934.7,2934.6,5.7473]
[1752358489243,0.68126,2934.7,2934.6,5.7473]
[1752358490845,0.68126,2934.7,2934.6,6.42859]
[1752358491243,3.28073,2934.9,2934.8,0.6391]
[1752358491444,4.28446172,2934.9,2934.8,2.5395]
[1752358493038,3.2806,2935.4,2935.3,2.5395]
[1752358494246,4.1391889,2935.4,2935.3,2.5395]
[1752358497648,4.1391889,2935.4,2935.3,3.22062]
[1752358497848,0.6288,2935.4,2935.3,3.22062]
[1752358499347,2.30629,2935.5,2935.4,3.2206]
[1752358499650,3.28059,2935.5,2935.4,3.2206]
[1752358500447,3.28051,2935.8,2935.7,3.22053]
[1752358500855,3.28051,2935.8,2935.7,2.5395]
[1752358501553,4.1390989,2935.8,2935.7,2.5395]
[1752358502457,4.1390989,2935.8,2935.7,3.22053]
[1752358503155,3.4580889,2935.8,2935.7,3.22053]
[1752358503353,1.6252,2935.8,2935.7,3.22053]
[1752358503554,0.68101,2935.8,2935.7,2.5395]
[1752358503757,3.28051,2935.8,2935.7,2.5395]
[1752358504562,3.28051,2935.8,2935.7,3.22053]
[1752358504756,4.1390989,2935.8,2935.7,2.5395]
[1752358505661,4.1390989,2935.8,2935.7,3.22053]
[1752358506960,4.1390989,2935.8,2935.7,2.5395]
[1752358508958,4.1390989,2935.8,2935.7,3.22053]
[1752358510060,4.1390989,2935.8,2935.7,2.5395]
[1752358510558,1.70276,2935.4,2935.1,3.2078]
[1752358510758,1.32822,2934.9,2934.8,5.1648]
[1752358510959,3.23632,2934.9,2934.8,3.2078]
[1752358511861,3.23636,2934.7,2934.6,2.5938]
[1752358512062,4.0949489,2934.7,2934.6,2.5938]
[1752358512363,4.0949489,2934.7,2934.6,1.6014]
[1752358513262,4.0949489,2934.7,2934.6,2.5938]
[1752358521464,4.0949489,2934.7,2934.6,0.6368]
[1752358521667,2.24461,2934.5,2934.4,5.8016]
[1752358521872,4.0949989,2934.5,2934.4,5.8016]
[1752358527877,4.0949989,2934.5,2934.4,4.8092]
[1752358528073,4.0949989,2934.5,2934.4,3.8446]
[1752358528777,4.0949989,2934.5,2934.2,0.9646]
[1752358528778,0.9163,2934.3,2934.2,0.9646]
[1752358528979,2.4562489,2934.3,2934.2,2.5938]
[1752358529269,3.1032489,2934.3,2934.2,2.5938]
[1752358529475,4.0950489,2934.3,2934.2,2.5938]
[1752358530676,3.23648,2934.2,2934.1,3.2078]
[1752358531178,3.23648,2934.2,2934.1,4.1724]
[1752358531677,3.23648,2934.2,2934.1,3.2078]
[1752358532873,0.68152,2933.6,2933.5,2.5938]
[1752358533074,4.0952089,2933.6,2933.5,2.5938]
[1752358533269,1.32856,2933.4,2933.3,2.5938]
[1752358533482,3.23666,2933.4,2933.3,2.5938]
[1752358534184,0.68156,2933.5,2933.4,3.27534]
[1752358534384,0.68156,2933.5,2933.4,6.48314]
[1752358535379,3.4136889,2933.8,2933.7,0.6368]
[1752358535576,4.0951589,2933.8,2933.7,2.5938]
[1752358541490,3.24332,2933.6,2933.5,2.5073]
[1752358541788,4.1019089,2933.6,2933.5,2.5073]
[1752358543187,4.1019089,2933.6,2933.5,0.6077]
[1752358544790,4.1019089,2933.6,2933.3,2.5073]
[1752358544791,3.24336,2933.4,2933.3,2.5073]
[1752358544985,4.1019489,2933.4,2933.3,3.18889]
[1752358545292,4.1019489,2933.4,2933.3,2.5073]
[1752358550793,7.3097489,2933.4,2933.3,2.5073]
[1752358551186,1.6812,2932.9,2932.8,2.5073]
[1752358551383,2.5397889,2932.9,2932.8,2.5073]
[1752358551595,4.1020889,2932.9,2932.8,2.5073]
[1752358552094,4.1020889,2932.9,2932.8,3.189]
[1752358552300,3.4203889,2932.9,2932.8,3.189]
[1752358553597,4.1020689,2932.9,2932.8,3.189]
[1752358554295,3.4203889,2932.9,2932.8,3.189]
[1752358554789,3.4203889,2932.9,2932.8,2.5073]
[1752358555093,4.1020689,2932.9,2932.8,2.5073]
[1752358555892,4.1020689,2932.9,2932.8,3.189]
[1752358556188,3.4203889,2932.9,2932.8,3.189]
[1752358558995,0.6817,2932.8,2932.7,3.2078]
[1752358559194,3.2435,2932.8,2932.7,3.2078]
[1752358559400,3.2435,2932.8,2932.7,4.1976]
[1752358559696,3.2435,2932.8,2932.7,5.7151]
[1752358560497,3.2435,2932.8,2932.7,2.5073]
[1752358560892,0.6499,2932.6,2932.5,2.5073]
[1752358561090,0.68187,2932.1,2932.0,3.2078]
[1752358561299,4.1022589,2932.1,2932.0,3.2078]
[1752358561599,3.24383,2931.4,2931.3,4.88492216]
[1752358561788,3.4203889,2931.4,2931.3,1.28975]
[1752358562391,0.9995,2931.8,2931.4,1.70503]
[1752358562592,2.5618,2931.8,2931.7,0.6077]
[1752358562898,3.4203889,2931.8,2931.7,0.6077]
[1752358563094,3.4203889,2931.8,2931.7,1.28966]
[1752358563298,4.1023289,2931.8,2931.7,0.6077]
[1752358563597,4.1023289,2931.8,2931.7,1.5975]
[1752358563794,3.4203889,2931.8,2931.7,2.27946]
[1752358564698,3.4203889,2931.8,2931.7,2.69906]
[1752358564995,0.9995,2932.0,2931.9,2.69901]
[1752358565195,1.9119,2932.0,2931.9,2.69901]
[1752358566791,0.9995,2932.0,2931.9,2.69901]
[1752358567394,1.9567,2932.0,2931.9,2.69901]
[1752358567793,2.6066,2932.0,2931.9,2.69901]
[1752358569403,1.9567,2932.0,2931.9,2.69901]
[1752358569893,2.5701,2932.0,2931.9,2.69901]
[1752358572101,3.4286889,2932.0,2931.9,2.69901]